bitfinex/quotes_ETHUSD_20240614
["timestamp","ask_amount","ask_price","bid_price","bid_amount"]
[1718344101662,2.2727294,3525.7,3524.6,0.11559846]
[1718344101897,1.666,3525.3,3523.6,2.2531]
[1718344102105,0.0567294,3525.2,3523.7,1.43344514]
[1718344102401,1.666,3524.9,3523.7,0.11622417]
[1718344102695,2.3611,3524.7,3523.1,4.1626]
[1718344102870,0.6067294,3524.6,3523.8,0.11595647]
[1718344103076,0.6067294,3524.6,3523.2,3.13544514]
[1718344103265,0.6067294,3524.6,3523.9,0.11589144]
[1718344103461,0.29678294,3524.5,3523.3,0.0567546]
[1718344103669,0.0567294,3524.4,3523.4,1.43344514]
[1718344104001,0.0567294,3524.4,3523.5,0.0567546]
[1718344104213,0.0567294,3524.4,3523.6,0.11608655]
[1718344104572,0.0567294,3524.4,3523.4,1.43344514]
[1718344104777,0.38319063,3524.4,3523.5,0.11615159]
[1718344106198,0.38319063,3524.4,3523.5,0.17290622]
[1718344106816,0.38319063,3524.4,3523.5,0.11615159]
[1718344108803,0.38319063,3524.4,3523.5,0.17290621]
[1718344109128,0.38319063,3524.4,3523.5,0.11615159]
[1718344109899,0.80991906,3524.3,3523.5,0.11615159]
[1718344110094,0.0567294,3524.2,3522.8,0.05676124]
[1718344110407,0.0567294,3524.3,3523.0,2.4603]
[1718344110613,0.0567294,3524.3,3523.1,3.25175998]
[1718344110997,0.32646123,3524.4,3523.1,3.25175998]
[1718344111196,0.0567294,3524.3,3523.2,2.273206]
[1718344111496,0.38319063,3524.4,3523.3,1.60638354]
[1718344111700,0.38319063,3524.4,3523.3,3.30838354]
[1718344112502,0.0567294,3524.6,3523.3,3.30838354]
[1718344113116,0.0567294,3524.6,3523.3,3.25162987]
[1718344113699,0.0567294,3524.6,3523.3,0.11618473]
[1718344113700,1.7227294,3524.6,3523.3,0.11618473]
[1718344113901,0.55,3524.5,3523.3,0.11618473]
[1718344114210,2.478,3524.1,3522.1,9.7272]
[1718344114394,0.0567294,3524.0,3522.3,1.55091046]
[1718344114594,0.6067294,3524.0,3522.3,1.55091046]
[1718344115633,0.6067294,3524.0,3522.4,0.05677133]
[1718344115838,0.77367294,3523.9,3522.4,1.49021647]
[1718344116150,0.0567294,3523.8,3522.5,3.25287699]
[1718344116356,0.0567294,3523.8,3522.6,0.05676457]
[1718344116498,0.0567294,3523.8,3522.7,1.43344514]
[1718344116699,0.0567294,3523.8,3522.8,0.05676458]
[1718344116900,0.0567294,3523.8,3522.8,1.49020972]
[1718344117134,0.0567294,3524.0,3522.9,0.11727451]
[1718344117429,0.0567294,3524.0,3522.9,0.17403908]
[1718344118370,0.0567294,3524.0,3522.9,0.11727451]
[1718344118502,0.97007294,3523.9,3522.9,0.11727451]
[1718344118702,0.0567294,3523.8,3522.3,1.702]
[1718344118903,0.0567294,3523.7,3522.4,1.43344514]
[1718344119243,0.0567294,3523.7,3522.4,1.55103567]
[1718344119244,0.6067294,3523.7,3522.4,1.55103567]
[1718344120517,2.4216,3523.6,3522.4,1.55103567]
[1718344120729,0.52616234,3523.5,3522.4,1.55103567]
[1718344120929,0.52616234,3523.5,3522.4,0.11759053]
[1718344121214,0.52616234,3523.5,3522.5,3.19221793]
[1718344121438,2.4216,3523.6,3522.6,0.11746037]
[1718344121646,3.06808294,3524.4,3522.8,1.702]
[1718344121949,0.0567294,3524.3,3523.0,1.702]
[1718344122154,0.0567294,3524.2,3523.1,1.43344514]
[1718344122449,0.36921063,3524.2,3523.1,1.43344514]
[1718344123014,0.36921063,3524.2,3523.2,0.11706996]
[1718344123410,0.36921063,3524.2,3522.6,1.702]
[1718344123642,0.36921063,3524.2,3522.8,1.702]
[1718344123914,0.26739106,3524.1,3522.9,3.13544514]
[1718344124110,0.0567294,3524.0,3522.9,3.13544514]
[1718344124362,0.0567294,3524.0,3523.0,0.11720008]
[1718344124520,0.0567294,3524.0,3523.1,1.43344514]
[1718344124718,0.0567294,3524.0,3523.1,1.55058016]
[1718344125815,0.0567294,3524.0,3523.1,0.11713502]
[1718344126018,0.0567294,3524.0,3522.6,1.702]
[1718344126215,2.3592,3523.9,3522.7,1.55084043]
[1718344126418,0.0567294,3523.8,3522.7,1.55084043]
[1718344127372,0.0567294,3523.8,3522.7,0.11739529]
[1718344127584,0.55,3523.7,3522.7,0.11739529]
[1718344127776,0.55,3523.7,3522.2,1.702]
[1718344127777,0.0567294,3523.6,3522.3,0.05677123]
[1718344127978,0.35332234,3523.6,3522.8,0.11733022]
[1718344128266,0.35332234,3523.6,3522.9,0.11726515]
[1718344128561,0.35332234,3523.6,3522.5,0.0567712]
[1718344128732,0.35332234,3523.6,3523.0,0.11720008]
[1718344128938,0.35332234,3523.6,3522.4,1.60932226]
[1718344129121,0.35332234,3523.6,3523.1,0.11744702]
[1718344129456,0.35332234,3523.6,3523.2,0.11738196]
[1718344129896,2.3553,3523.5,3522.0,3.0]
[1718344130031,0.0567294,3523.4,3522.1,1.27218]
[1718344130233,0.0567294,3523.4,3522.2,0.11803271]
[1718344130532,0.55,3523.3,3522.2,0.11803271]
[1718344130737,0.51953234,3523.2,3522.2,0.11803271]
[1718344130970,0.55,3523.1,3521.5,1.75877925]
[1718344131130,0.0567294,3523.0,3521.7,1.702]
[1718344131333,0.0567294,3523.0,3521.8,1.49022439]
[1718344131644,0.0567294,3523.0,3521.9,0.63108381]
[1718344131842,0.0567294,3523.0,3522.0,0.05677924]
[1718344132028,0.0567294,3523.0,3522.0,0.17513251]
[1718344134098,2.3986,3524.0,3522.3,1.702]
[1718344134371,2.3986,3524.0,3522.4,3.67592965]
[1718344134372,3.92041555,3523.9,3522.4,3.67592965]
[1718344134543,3.92041555,3523.9,3522.4,3.7940444]
[1718344135270,3.92041555,3523.9,3522.4,2.0920444]
[1718344135445,0.55,3523.8,3522.4,1.55155989]
[1718344135642,2.3251,3523.6,3522.4,0.11811475]
[1718344135849,0.6067294,3523.5,3522.0,1.702]
[1718344136049,0.6067294,3523.5,3522.5,0.11792482]
[1718344136237,0.6067294,3523.5,3522.1,1.43344514]
[1718344136433,0.45978294,3523.4,3522.2,0.11812009]
[1718344136658,0.6067294,3523.3,3522.2,0.11812009]
[1718344136864,0.0567294,3523.2,3522.2,0.11812009]
[1718344137476,2.2778,3523.1,3522.2,0.11812009]
[1718344137780,0.0567294,3523.0,3522.2,0.11812009]
[1718344138548,0.0567294,3523.0,3522.2,0.50658499]
[1718344138773,0.0567294,3523.0,3522.2,0.11812009]
[1718344141079,0.0567294,3523.0,3521.5,1.702]
[1718344141080,0.55,3522.9,3521.5,1.702]
[1718344141238,0.0567294,3522.8,3522.3,0.11817046]
[1718344141439,0.55,3522.9,3521.6,4.43344514]
[1718344141440,0.0567294,3522.7,3521.6,4.43344514]
[1718344141771,0.28400234,3522.7,3521.7,0.11856107]
[1718344141971,3.0469,3522.6,3521.7,0.11856107]
[1718344142288,3.0469,3522.6,3521.2,1.702]
[1718344142289,0.0567294,3522.5,3521.2,1.702]
[1718344142444,0.0567294,3522.5,3521.8,0.11849596]
[1718344142645,0.0567294,3522.5,3521.3,1.43344514]
[1718344142860,0.33309023,3522.4,3521.4,0.11875642]
[1718344143044,0.6067294,3522.3,3520.8,4.702]
[1718344143247,0.0567294,3522.2,3520.9,3.25452722]
[1718344143446,0.0567294,3522.2,3521.0,3.0]
[1718344143688,0.0567294,3522.2,3521.1,2.47784967]
[1718344143871,2.4815,3522.1,3521.1,1.55239695]
[1718344144187,0.0567294,3522.0,3521.1,1.55239695]
[1718344145047,0.0567294,3522.0,3521.1,0.11895181]
[1718344145247,0.0567294,3522.0,3520.7,1.702]
[1718344145566,0.0567294,3522.0,3520.8,1.55259236]
[1718344145768,0.25382294,3521.9,3520.8,0.11914722]
[1718344146101,0.0567294,3521.8,3520.8,0.11914722]
[1718344146277,0.0567294,3521.8,3520.2,1.702]
[1718344146445,0.0567294,3521.8,3520.9,0.11908208]
[1718344146647,0.0567294,3521.8,3520.5,0.05679995]
[1718344146875,0.50253463,3521.8,3520.6,2.17194717]
[1718344147079,0.0567294,3521.8,3520.7,1.75879995]
[1718344147270,0.0567294,3521.8,3520.8,1.49024077]
[1718344147582,0.55,3521.7,3520.8,0.11914722]
[1718344147895,0.0567294,3521.6,3520.7,0.05680221]
[1718344148050,0.0567294,3522.0,3520.9,1.60932943]
[1718344148397,2.466,3522.7,3521.2,1.702]
[1718344148552,0.0567294,3522.6,3521.4,1.702]
[1718344148752,0.0567294,3522.6,3521.5,3.13544514]
[1718344148950,2.466,3522.7,3521.6,0.05678335]
[1718344149260,0.0567294,3522.6,3521.6,0.11906332]
[1718344149567,0.0567294,3522.6,3521.1,1.702]
[1718344149770,0.0567294,3522.6,3521.7,0.11899821]
[1718344149948,0.0567294,3522.6,3521.2,1.43344514]
[1718344150149,0.25227294,3522.5,3521.8,0.1189331]
[1718344150378,0.0567294,3522.4,3521.3,0.15943781]
[1718344150585,0.0567294,3522.4,3521.4,1.43344514]
[1718344150878,0.0567294,3522.4,3521.4,1.5526387]
[1718344151267,0.0567294,3522.4,3521.4,0.11919356]
[1718344151586,2.432,3522.2,3520.7,1.702]
[1718344151757,0.0567294,3522.1,3520.8,3.13544514]
[1718344152086,0.0567294,3522.1,3520.9,3.0]
[1718344152390,0.0567294,3522.1,3520.9,0.11968776]
[1718344152685,0.55,3522.0,3520.2,1.702]
[1718344152857,0.52720234,3521.9,3521.0,0.11962574]
[1718344153190,0.55,3521.8,3521.0,0.11962574]
[1718344153508,0.0567294,3521.7,3521.1,0.11956061]
[1718344153662,0.0567294,3521.7,3520.4,1.702]
[1718344153862,0.0567294,3521.7,3520.5,1.55339662]
[1718344154050,0.0567294,3521.7,3520.5,1.91888528]
[1718344154247,2.3252,3521.6,3520.5,1.91888528]
[1718344154559,0.0567294,3521.5,3520.5,1.91888528]
[1718344155667,0.0567294,3521.5,3520.5,0.11995148]
[1718344156178,0.0567294,3521.5,3520.2,1.702]
[1718344156374,0.0567294,3521.5,3520.6,0.11988632]
[1718344156575,0.0567294,3521.5,3520.7,0.05680371]
[1718344156780,0.0567294,3521.5,3520.7,0.11982117]
[1718344157085,2.3252,3521.6,3520.8,0.0567982]
[1718344157298,2.3252,3521.6,3520.8,0.17674789]
[1718344157702,2.3252,3521.6,3520.8,0.33776719]
[1718344158601,6.42176171,3522.3,3520.8,0.33776719]
[1718344158602,2.3482,3522.2,3520.9,1.43344514]
[1718344158801,2.4049294,3522.2,3521.0,0.05679467]
[1718344159108,2.4049294,3522.2,3521.1,1.43344514]
[1718344159401,2.4049294,3522.2,3521.2,0.05678969]
[1718344159565,2.4049294,3522.2,3521.3,0.38798262]
[1718344159901,2.4049294,3522.2,3521.3,0.50754727]
[1718344160102,2.4049294,3522.2,3521.3,0.1763543]
[1718344163395,2.4049294,3522.2,3521.3,0.11956465]
[1718344164002,2.4049294,3522.2,3521.4,0.05678969]
[1718344164501,2.4049294,3522.2,3521.5,0.11952497]
[1718344164871,2.4049294,3522.2,3521.2,1.43344514]
[1718344165106,2.4049294,3522.2,3521.3,0.11965522]
[1718344165325,2.4049294,3522.2,3521.3,0.17644494]
[1718344169103,0.0567294,3522.2,3521.3,0.17644494]
[1718344169310,0.25227294,3522.5,3521.3,0.17644494]
[1718344169311,0.0567294,3522.4,3521.3,0.17644494]
[1718344170111,0.0567294,3522.4,3521.3,0.05678972]
[1718344170318,0.27402023,3522.3,3521.3,0.05678972]
[1718344170513,0.0567294,3522.2,3521.3,0.05678972]
[1718344170735,0.0567294,3522.2,3521.4,0.11959009]
[1718344171424,0.0567294,3522.2,3520.9,1.702]
[1718344171599,0.0567294,3522.2,3521.5,0.11952497]
[1718344171915,0.55,3522.1,3520.9,1.43344514]
[1718344172093,0.0567294,3522.0,3521.6,0.11945986]
[1718344172279,0.0567294,3522.0,3520.9,1.43344514]
[1718344172482,0.0567294,3522.0,3521.0,0.11985062]
[1718344172918,0.0567294,3522.0,3521.0,0.17664621]
[1718344173538,0.0567294,3522.0,3521.0,0.11985062]
[1718344175174,0.0567294,3522.0,3521.2,2.3454]
[1718344175380,0.0567294,3522.2,3521.3,3.13544514]
[1718344175614,0.0567294,3522.2,3521.3,3.255091]
[1718344175833,4.666,3522.9,3521.3,3.255091]
[1718344175834,0.0567294,3522.8,3521.3,3.255091]
[1718344175979,0.0567294,3522.7,3521.3,3.255091]
[1718344176621,0.0567294,3522.7,3521.3,1.553091]
[1718344176808,2.9106,3522.6,3521.3,1.553091]
[1718344176991,0.0567294,3522.5,3521.3,1.553091]
[1718344177325,0.0567294,3522.5,3521.3,0.11964586]
[1718344177510,0.0567294,3522.5,3521.0,1.702]
[1718344177511,0.55,3522.4,3521.0,1.702]
[1718344177820,0.55,3522.4,3520.8,2.2935]
[1718344177821,0.0567294,3522.3,3521.4,0.11958074]
[1718344178021,0.0567294,3522.2,3521.2,0.05679231]
[1718344178328,0.0567294,3522.2,3521.3,0.05678966]
[1718344178649,0.0567294,3522.2,3521.3,1.60988066]
[1718344178861,15.38,3523.5,3521.3,3.31188066]
[1718344179088,0.0567294,3522.9,3521.5,1.702]
[1718344179222,0.29335234,3522.9,3521.6,3.76820394]
[1718344179552,0.29335234,3522.9,3521.6,3.88765444]
[1718344179921,3.90386552,3523.4,3521.8,1.702]
[1718344180122,0.0567294,3523.3,3521.9,3.1922207]
[1718344180434,0.0567294,3523.3,3522.0,0.05677314]
[1718344180620,0.0567294,3523.3,3522.1,3.13544514]
[1718344180817,0.64121949,3523.2,3522.2,0.05677319]
[1718344181055,0.0567294,3523.1,3522.3,1.43344514]
[1718344181262,0.0567294,3523.1,3522.3,1.55223381]
[1718344182761,0.0567294,3523.1,3522.3,0.11878867]
[1718344182928,0.0567294,3523.1,3521.7,1.702]
[1718344183123,0.0567294,3523.1,3522.4,0.11860806]
[1718344183365,0.0567294,3523.1,3521.9,1.702]
[1718344183552,0.0567294,3523.1,3522.5,0.11856795]
[1718344183758,0.0567294,3523.1,3522.0,1.43344514]
[1718344183943,0.0567294,3523.1,3522.6,0.11850287]
[1718344184438,0.0567294,3523.1,3522.0,1.43344514]
[1718344184628,0.0567294,3523.1,3522.7,0.1184378]
[1718344184829,0.0567294,3523.1,3522.0,1.43344514]
[1718344185355,0.0567294,3523.1,3522.1,0.11882831]
[1718344185669,0.0567294,3523.1,3522.1,1.55227345]
[1718344186570,0.0567294,3523.1,3522.2,2.2537]
[1718344186778,0.0567294,3523.1,3522.2,2.37246322]
[1718344187070,0.0567294,3523.4,3522.2,0.11876322]
[1718344187246,0.55,3523.3,3522.2,0.11876322]
[1718344187438,0.52916234,3523.2,3522.1,1.43344514]
[1718344187643,0.52916234,3523.2,3521.6,2.27797807]
[1718344187970,0.55,3523.1,3521.7,1.43344514]
[1718344188178,0.0567294,3523.0,3521.7,4.5522934]
[1718344188466,2.4777,3522.9,3521.7,1.5522934]
[1718344188667,0.36517234,3522.8,3521.7,1.5522934]
[1718344188854,0.0567294,3522.7,3521.7,1.43344514]
[1718344189054,0.55,3522.6,3521.8,0.11880188]
[1718344189229,0.0567294,3522.5,3521.8,0.11880188]
[1718344189435,0.0567294,3522.5,3521.3,5.2537]
[1718344189753,0.0567294,3522.5,3521.4,1.43344514]
[1718344189941,0.55,3522.4,3521.4,0.11906234]
[1718344190141,0.0567294,3522.3,3521.0,3.0]
[1718344190474,0.0567294,3522.3,3521.5,0.11908153]
[1718344190771,0.0567294,3522.3,3521.6,0.11901953]
[1718344190939,0.0567294,3522.3,3521.1,1.4902369]
[1718344191143,0.0567294,3522.3,3521.7,0.11895442]
[1718344191344,0.0567294,3522.3,3521.2,0.0567917]
[1718344191543,0.0567294,3522.3,3521.8,0.11888931]
[1718344191747,0.0567294,3522.3,3521.2,0.0567917]
[1718344192146,0.0567294,3522.3,3521.3,0.1192149]
[1718344193169,0.0567294,3522.3,3521.4,1.4902369]
[1718344193355,0.0567294,3522.7,3521.4,1.60938667]
[1718344193675,0.55,3522.6,3521.4,1.60938667]
[1718344193880,0.0567294,3522.5,3521.4,1.60938667]
[1718344194948,0.0567294,3522.7,3521.4,1.60938667]
[1718344195149,0.28428723,3522.6,3521.5,0.37723318]
[1718344195353,0.0567294,3522.5,3521.6,0.05678611]
[1718344195551,0.0567294,3522.5,3521.6,0.11903827]
[1718344195756,0.0567294,3522.5,3521.6,0.17582438]
[1718344196445,0.0567294,3522.5,3521.6,0.11903827]
[1718344196649,2.4292,3522.3,3521.6,0.11903827]
[1718344196950,0.36032234,3522.2,3520.9,1.702]
[1718344197164,0.36032234,3522.2,3521.0,1.43344514]
[1718344197400,0.36032234,3522.2,3521.0,1.55287104]
[1718344202726,2.4915,3522.1,3521.0,0.1194259]
[1718344202930,0.0567294,3522.0,3520.3,1.702]
[1718344203099,0.55,3521.9,3520.4,1.5535055]
[1718344203302,0.72015234,3521.8,3520.4,1.5535055]
[1718344203500,0.6067294,3521.7,3520.5,0.05680353]
[1718344203712,0.6067294,3521.7,3520.6,0.11993005]
[1718344204031,2.4994,3521.6,3520.6,0.11993005]
[1718344204237,0.0567294,3521.5,3520.6,0.11993005]
[1718344204398,0.43368463,3521.5,3520.5,0.05680352]
[1718344204601,0.43368463,3521.5,3520.7,0.1198649]
[1718344204825,0.43368463,3521.5,3520.6,0.11993005]
[1718344205000,0.43368463,3521.5,3520.8,0.11979975]
[1718344205204,0.43368463,3521.5,3520.5,0.05680352]
[1718344205405,0.34830846,3521.4,3520.5,0.05680352]
[1718344205605,0.0567294,3521.3,3520.6,0.11993005]
[1718344205897,0.40503786,3521.4,3520.6,0.11993005]
[1718344206102,0.0567294,3521.4,3520.6,0.11993005]
[1718344207348,3.23826148,3522.2,3520.7,3.1922486]
[1718344207508,2.4425294,3522.1,3520.8,0.05679377]
[1718344207708,2.4425294,3522.1,3520.9,3.31213123]
[1718344207900,2.4425294,3522.1,3520.9,0.11989391]
[1718344208142,2.4425294,3522.1,3520.6,3.368]
[1718344208350,2.4425294,3522.1,3521.0,0.11982877]
[1718344208655,2.4425294,3522.1,3520.8,0.0567972]
[1718344208873,2.4425294,3522.1,3521.1,0.11968866]
[1718344209067,2.4425294,3522.1,3520.9,0.11981894]
[1718344209068,0.24425294,3522.0,3520.9,0.11981894]
[1718344209290,2.3487,3521.8,3520.4,1.702]
[1718344209431,2.2863,3521.6,3521.0,0.1197538]
[1718344209635,0.6067294,3521.5,3519.9,1.666]
[1718344209842,0.34430294,3521.4,3520.0,2.14461514]
[1718344210137,0.0567294,3521.3,3520.0,5.32184266]
[1718344210367,0.0567294,3521.3,3520.0,7.02384266]
[1718344211658,0.0567294,3521.3,3520.0,6.96703612]
[1718344212170,0.0567294,3521.5,3520.0,6.96703612]
[1718344212484,0.2853594,3521.5,3520.2,1.702]
[1718344212644,0.2853594,3521.5,3520.3,1.43344514]
[1718344212974,0.2853594,3521.5,3520.3,1.55367061]
[1718344213380,0.2853594,3521.5,3520.4,0.05680394]
[1718344213539,0.2853594,3521.5,3520.4,1.49024908]
[1718344213759,0.25716594,3521.4,3520.5,0.12009515]
[1718344213962,0.0567294,3521.3,3520.3,0.05680699]
[1718344214200,0.0567294,3521.2,3520.6,0.12003]
[1718344214496,0.0567294,3521.2,3520.3,0.05680699]
[1718344214693,0.0567294,3521.2,3520.7,0.12017411]
[1718344214994,0.0567294,3521.2,3520.8,0.12010897]
[1718344215203,0.0567294,3521.2,3520.3,0.05680686]
[1718344215361,0.0567294,3521.2,3520.9,0.12004382]
[1718344215560,0.0567294,3521.2,3520.0,1.702]
[1718344215902,2.33,3521.1,3520.0,1.43344514]
[1718344216203,0.29540234,3521.0,3520.1,0.12056507]
[1718344217564,0.29540234,3521.0,3519.7,1.702]
[1718344217717,0.29540234,3521.0,3519.8,1.55420574]
[1718344219317,7.0559,3520.8,3519.8,0.1207606]
[1718344219617,1.84020415,3520.7,3518.6,1.666]
[1718344219816,1.84020415,3520.7,3518.7,1.49026917]
[1718344220012,1.84020415,3520.7,3518.7,1.61201569]
[1718344220216,2.4404,3520.6,3518.8,1.702]
[1718344220438,1.47673433,3520.5,3519.0,1.702]
[1718344220738,1.47673433,3520.5,3519.1,1.61186421]
[1718344220935,2.3306,3520.4,3519.1,0.12159505]
[1718344221098,0.6067294,3520.3,3518.5,0.05682886]
[1718344221303,0.0567294,3520.2,3518.7,1.702]
[1718344221538,0.84373294,3520.1,3518.8,1.93139213]
[1718344221736,0.84373294,3520.1,3518.8,4.93139213]
[1718344221737,0.0567294,3520.0,3518.8,4.93139213]
[1718344222106,0.0567294,3520.0,3518.8,1.87456327]
[1718344222904,0.0567294,3520.0,3518.9,0.05682882]
[1718344223142,0.0567294,3520.0,3519.0,0.12176342]
[1718344223465,0.0567294,3520.0,3518.8,1.43344514]
[1718344223743,0.0567294,3520.0,3518.9,0.12189742]
[1718344223977,0.0567294,3520.3,3519.1,1.702]
[1718344224282,0.0567294,3520.2,3519.2,1.43344514]
[1718344224499,0.0567294,3520.2,3519.2,0.12170179]
[1718344224637,0.0567294,3520.2,3519.2,0.17852625]
[1718344225174,0.0567294,3520.6,3519.2,0.17852535]
[1718344225378,0.97065294,3520.5,3519.2,0.17852621]
[1718344225603,0.0567294,3520.4,3519.2,0.12170179]
[1718344225879,0.55,3520.3,3519.2,0.17852624]
[1718344226080,0.0567294,3520.2,3519.2,0.05682445]
[1718344226237,0.0567294,3520.2,3519.0,4.1635]
[1718344226439,0.0567294,3520.2,3519.3,0.12209293]
[1718344226688,0.0567294,3520.2,3519.1,1.43344514]
[1718344226856,0.0567294,3520.2,3519.4,0.12202773]
[1718344227208,0.0567294,3520.2,3519.5,0.12196254]
[1718344227209,2.4691,3520.1,3519.5,0.12196254]
[1718344227363,0.36431234,3520.0,3519.5,0.12196254]
[1718344227702,0.36431234,3520.0,3518.7,1.702]
[1718344227842,0.36431234,3520.0,3519.6,0.12189735]
[1718344228039,0.36431234,3520.0,3518.8,1.43344514]
[1718344228443,0.36431234,3520.0,3518.9,0.12235376]
[1718344228648,0.28334123,3519.9,3518.9,0.12235376]
[1718344228847,0.0567294,3519.8,3518.9,0.12235376]
[1718344229557,0.0567294,3519.8,3518.9,0.17918302]
[1718344230755,3.65891442,3520.5,3519.1,2.452]
[1718344230961,0.0567294,3520.4,3519.2,3.19226439]
[1718344231276,0.0567294,3520.4,3519.2,3.25761265]
[1718344231884,0.0567294,3520.4,3519.2,3.29364988]
[1718344232084,0.0567294,3520.4,3519.4,1.702]
[1718344232260,0.0567294,3520.4,3519.5,1.43344514]
[1718344232632,0.0567294,3520.4,3519.5,1.59143928]
[1718344233116,0.0567294,3520.4,3519.6,0.05681827]
[1718344233448,0.0567294,3520.4,3519.7,0.15781482]
[1718344234081,0.0567294,3520.4,3519.3,0.57456499]
[1718344234300,0.0567294,3520.4,3517.9,1.62930251]
[1718344234301,0.28774234,3520.4,3519.8,0.15774861]
[1718344234598,0.28774234,3520.4,3519.1,4.158]
[1718344234804,0.28774234,3520.4,3519.1,5.59144514]
[1718344234957,0.28774234,3520.4,3519.2,0.15794895]
[1718344236676,0.55,3520.3,3519.2,0.15794895]
[1718344236877,0.0567294,3520.2,3519.2,0.15794895]
[1718344237251,0.0567294,3520.2,3519.2,0.21477332]
[1718344237461,0.0567294,3520.2,3519.2,0.15794895]
[1718344238191,2.8173,3520.1,3518.8,1.706]
[1718344238354,0.0567294,3520.0,3519.3,0.15798901]
[1718344238555,0.0567294,3520.0,3519.0,0.05682775]
[1718344238791,0.0567294,3520.0,3519.1,0.15812773]
[1718344239357,0.0567294,3520.0,3518.9,1.43344514]
[1718344239556,0.0567294,3520.0,3519.0,0.15819396]
[1718344241492,0.55,3519.9,3518.4,4.706]
[1718344241681,0.0567294,3519.8,3519.1,0.1581715]
[1718344241875,2.5178294,3519.7,3518.4,3.0]
[1718344242052,0.85678294,3519.6,3519.2,0.15810527]
[1718344242257,0.0567294,3519.5,3518.4,4.43344514]
[1718344242679,0.0567294,3519.5,3518.5,0.15856897]
[1718344243392,0.55,3519.4,3518.5,0.15856897]
[1718344243556,0.0567294,3519.3,3517.9,1.706]
[1718344243751,0.6067294,3519.2,3518.0,1.59249242]
[1718344244089,0.0567294,3519.2,3518.0,1.59249242]
[1718344244589,0.0567294,3519.2,3518.1,0.05684208]
[1718344244780,0.0567294,3519.2,3518.1,0.21588877]
[1718344245302,0.0567294,3519.2,3518.1,1.64933391]
[1718344245589,0.0567294,3519.2,3518.2,0.39351839]
[1718344245789,0.0567294,3519.2,3518.3,0.05683835]
[1718344246088,0.0567294,3519.2,3518.4,1.43344514]
[1718344246292,2.4611,3519.7,3518.5,1.76283454]
[1718344246497,2.4611,3519.7,3518.6,3.72358484]
[1718344246790,2.4611,3519.7,3518.7,1.92180364]
[1718344246996,2.4611,3519.7,3518.8,1.49027441]
[1718344247491,2.4611,3519.7,3518.9,0.15883871]
[1718344247797,2.4103,3520.1,3518.9,0.21566798]
[1718344247998,0.86485615,3520.0,3518.9,0.21566798]
[1718344248171,0.0567294,3519.9,3518.9,0.21566798]
[1718344248709,2.4103,3520.1,3519.0,3.13944514]
[1718344248915,0.0567294,3520.0,3519.0,3.13944514]
[1718344249058,0.0567294,3520.0,3519.2,1.706]
[1718344249263,2.4103,3520.1,3519.3,1.49026637]
[1718344249466,2.4103,3520.1,3519.3,1.64875883]
[1718344249998,5.66166148,3520.6,3519.3,1.64875883]
[1718344250213,0.0567294,3520.5,3519.3,1.64875883]
[1718344252993,0.0567294,3520.5,3519.3,1.5919376]
[1718344253198,0.57183909,3520.4,3519.3,1.5919376]
[1718344253391,0.0567294,3520.3,3519.3,1.5919376]
[1718344253597,0.0567294,3520.3,3519.4,0.05682121]
[1718344253882,0.0567294,3520.3,3519.3,1.5919376]
[1718344254083,0.0567294,3520.3,3519.5,0.15836002]
[1718344254305,2.4234,3520.6,3519.3,1.43344514]
[1718344254306,0.0567294,3520.5,3519.4,0.15842624]
[1718344254511,0.24801294,3520.4,3519.6,0.1582938]
[1718344254709,0.0567294,3520.3,3519.3,1.43344514]
[1718344254920,0.0567294,3520.3,3519.2,0.32980701]
[1718344255122,0.0567294,3520.3,3519.4,0.15842624]
[1718344255423,0.0567294,3520.3,3519.5,0.15836002]
[1718344255819,0.0567294,3520.3,3518.9,1.706]
[1718344256025,0.0567294,3520.3,3519.6,0.1582938]
[1718344256222,0.0567294,3520.3,3519.0,3.13944514]
[1718344256385,0.32954363,3520.3,3519.7,0.15822759]
[1718344256586,0.32954363,3520.3,3519.0,3.13944514]
[1718344256786,0.32954363,3520.3,3519.8,0.15816138]
[1718344256987,0.32954363,3520.3,3519.0,3.13944514]
[1718344257385,0.32954363,3520.3,3519.1,0.15837785]
[1718344257586,0.32954363,3520.3,3519.1,1.59182299]
[1718344258016,0.32954363,3520.3,3519.2,0.05682427]
[1718344258417,0.32954363,3520.3,3519.3,0.15824539]
[1718344259220,0.32954363,3520.3,3519.2,0.05682426]
[1718344259581,0.32954363,3520.3,3519.4,0.15817916]
[1718344259711,0.32954363,3520.3,3519.2,0.05682426]
[1718344259712,0.32954363,3520.3,3519.3,0.15824539]
[1718344260587,0.32954363,3520.3,3519.1,1.43344514]
[1718344260830,0.32954363,3520.3,3519.4,0.15817916]
[1718344261134,0.32954363,3520.3,3519.2,0.15831162]
[1718344261288,3.0118,3520.2,3519.5,0.15811294]
[1718344261488,0.0567294,3520.1,3519.3,0.15822663]
[1718344261690,0.0567294,3520.1,3519.6,0.15802796]
[1718344261884,0.0567294,3520.1,3518.5,4.706]
[1718344261885,0.88413436,3520.0,3518.5,4.706]
[1718344262124,0.0567294,3519.9,3518.5,6.13944514]
[1718344262418,0.55,3519.8,3518.6,0.1586903]
[1718344262629,0.0567294,3519.7,3518.6,0.1586903]
[1718344263191,0.0567294,3519.7,3518.6,0.21552423]
[1718344263390,0.0567294,3519.7,3518.6,1.08177117]
[1718344263590,0.0567294,3519.7,3518.6,4.08177117]
[1718344265194,0.0567294,3519.7,3518.6,4.02493724]
[1718344265843,2.2716,3519.6,3518.6,4.02493724]
[1718344266042,0.0567294,3519.5,3518.6,4.02493724]
[1718344266531,0.0567294,3519.5,3518.6,0.1586903]
[1718344266532,0.34456234,3519.5,3518.6,0.1586903]
[1718344266900,0.34456234,3519.5,3518.3,1.706]
[1718344267098,0.34456234,3519.5,3518.7,0.15875227]
[1718344267311,0.34456234,3519.5,3518.4,1.43344514]
[1718344267533,0.34456234,3519.5,3518.8,0.15868602]
[1718344267739,0.26161623,3519.4,3518.4,1.43344514]
[1718344267902,0.26161623,3519.4,3518.9,0.15875738]
[1718344267903,0.0567294,3519.3,3518.9,0.15875738]
[1718344268103,0.0567294,3519.3,3518.4,1.43344514]
[1718344268303,0.31572396,3519.3,3519.0,0.15872241]
[1718344268522,0.0567294,3519.2,3518.4,1.43344514]
[1718344269139,0.0567294,3519.5,3518.5,0.21588915]
[1718344269436,0.0567294,3519.5,3518.5,1.64933429]
[1718344271636,0.0567294,3519.5,3518.5,1.59249879]
[1718344271937,0.0567294,3519.5,3518.6,3.46929502]
[1718344272313,0.0567294,3519.5,3518.7,0.15893991]
[1718344272714,2.2975,3519.4,3518.7,0.15893991]
[1718344273049,0.0567294,3519.3,3517.8,1.666]
[1718344273206,0.0567294,3519.2,3517.9,3.13944514]
[1718344273406,0.0567294,3519.2,3518.0,2.48654451]
[1718344273607,0.0567294,3519.2,3518.1,1.43344514]